[Event "Late Titled Tuesday Blitz February 8 2022"]
[White "Rodrigues Mota, Romulo Cardoso S"]
[Black "Morris-Suzuki, Sophie"]
[WhiteFideId "2187442"]
[BlackFideId "30922615"]
[WhiteElo "1719"]
[BlackElo "2440"]
[Result "0-1"]
[Round "08"]
[TimeControl "180+1"]
[Date "2022.02.09"]
[WhiteClock "0:02:33"]
[BlackClock "0:02:23"]

1. e4 {[%clk 0:03:00]}  c5 {[%clk 0:03:00]} 2. Nf3 {[%clk 0:03:01]}  e6 {[%clk 0:03:00]} 3. d4 {[%clk 0:03:01]}  cxd4 {[%clk 0:03:01]} 4. Nxd4 {[%clk 0:03:02]}  a6 {[%clk 0:03:02]} 5. Nc3 {[%clk 0:03:02]}  Qc7 {[%clk 0:03:02]} 6. Be2 {[%clk 0:03:03]}  b5 {[%clk 0:03:03]} 7. O-O {[%clk 0:03:03]}  Bb7 {[%clk 0:03:03]} 8. Bf3 {[%clk 0:03:03]}  d6 {[%clk 0:03:02]} 9. Re1 {[%clk 0:03:02]}  Be7 {[%clk 0:03:01]} 10. a4 {[%clk 0:03:00]}  b4 {[%clk 0:03:00]} 11. Nce2 {[%clk 0:03:00]}  Nf6 {[%clk 0:03:00]} 12. Ng3 {[%clk 0:03:00]}  Nbd7 {[%clk 0:03:00]} 13. Bg5 {[%clk 0:02:59]}  O-O {[%clk 0:03:00]} 14. a5 {[%clk 0:02:58]}  Ne5 {[%clk 0:02:58]} 15. Bxf6 {[%clk 0:02:55]}  Bxf6 {[%clk 0:02:58]} 16. Nh5 {[%clk 0:02:55]}  Nxf3+ {[%clk 0:02:55]} 17. Qxf3 {[%clk 0:02:56]}  Bxd4 {[%clk 0:02:55]} 18. c3 {[%clk 0:02:45]}  bxc3 {[%clk 0:02:49]} 19. bxc3 {[%clk 0:02:46]}  Qxc3 {[%clk 0:02:43]} 20. Qg4 {[%clk 0:02:46]}  f5 {[%clk 0:02:25]} 21. exf5 {[%clk 0:02:32]}  Rxf5 {[%clk 0:02:24]} 22. Qf4 {[%clk 0:02:33]}  Rxf4 {[%clk 0:02:23]} 0-1


[Site "https://www.chess.com"]

[Event "Late Titled Tuesday Blitz February 8 2022"]
[White "Rorrer, Grayson"]
[Black "Wachinger, Guenther"]
[WhiteFideId "30944996"]
[BlackFideId "4604261"]
[WhiteElo "2122"]
[BlackElo "2212"]
[Result "0-1"]
[Round "08"]
[TimeControl "180+1"]
[Date "2022.02.09"]
[WhiteClock "0:01:28"]
[BlackClock "0:01:40"]

1. e4 {[%clk 0:03:00]}  c5 {[%clk 0:02:58]} 2. Nf3 {[%clk 0:03:00]}  d6 {[%clk 0:02:58]} 3. d4 {[%clk 0:02:58]}  cxd4 {[%clk 0:02:59]} 4. Nxd4 {[%clk 0:02:59]}  Nf6 {[%clk 0:02:58]} 5. Nc3 {[%clk 0:02:59]}  g6 {[%clk 0:02:59]} 6. Be3 {[%clk 0:02:57]}  Bg7 {[%clk 0:02:59]} 7. f3 {[%clk 0:02:58]}  O-O {[%clk 0:03:00]} 8. Qd2 {[%clk 0:02:58]}  Nc6 {[%clk 0:03:00]} 9. O-O-O {[%clk 0:02:57]}  d5 {[%clk 0:03:00]} 10. Nxc6 {[%clk 0:02:57]}  bxc6 {[%clk 0:03:00]} 11. exd5 {[%clk 0:02:56]}  Nxd5 {[%clk 0:03:00]} 12. Bd4 {[%clk 0:02:55]}  Bxd4 {[%clk 0:03:00]} 13. Qxd4 {[%clk 0:02:55]}  Qb6 {[%clk 0:03:01]} 14. Na4 {[%clk 0:02:48]}  Qa5 {[%clk 0:03:01]} 15. b3 {[%clk 0:02:39]}  Be6 {[%clk 0:03:01]} 16. Qc5 {[%clk 0:02:38]}  Qc7 {[%clk 0:03:01]} 17. Bc4 {[%clk 0:02:35]}  Rfd8 {[%clk 0:02:56]} 18. g3 {[%clk 0:02:33]}  Qe5 {[%clk 0:02:45]} 19. Qd4 {[%clk 0:02:26]}  Qxd4 {[%clk 0:02:20]} 20. Rxd4 {[%clk 0:02:27]}  Nb6 {[%clk 0:02:13]} 21. Rxd8+ {[%clk 0:02:27]}  Rxd8 {[%clk 0:02:14]} 22. Nxb6 {[%clk 0:02:24]}  axb6 {[%clk 0:02:15]} 23. Bxe6 {[%clk 0:02:22]}  fxe6 {[%clk 0:02:16]} 24. Re1 {[%clk 0:02:22]}  Kf7 {[%clk 0:02:16]} 25. f4 {[%clk 0:02:21]}  Kf6 {[%clk 0:02:16]} 26. Re4 {[%clk 0:02:18]}  Rd6 {[%clk 0:02:16]} 27. a4 {[%clk 0:02:15]}  c5 {[%clk 0:02:15]} 28. c3 {[%clk 0:02:12]}  Kf5 {[%clk 0:02:15]} 29. Re5+ {[%clk 0:02:11]}  Kg4 {[%clk 0:02:13]} 30. a5 {[%clk 0:02:10]}  Kh3 {[%clk 0:02:06]} 31. a6 {[%clk 0:02:10]}  b5 {[%clk 0:02:05]} 32. Rxc5 {[%clk 0:02:08]}  Rxa6 {[%clk 0:02:05]} 33. Rxb5 {[%clk 0:02:08]}  Kxh2 {[%clk 0:02:05]} 34. Rg5 {[%clk 0:02:08]}  e5 {[%clk 0:01:50]} 35. Rxe5 {[%clk 0:01:58]}  Kxg3 {[%clk 0:01:50]} 36. Rxe7 {[%clk 0:01:58]}  h5 {[%clk 0:01:49]} 37. Rf7 {[%clk 0:01:55]}  h4 {[%clk 0:01:48]} 38. f5 {[%clk 0:01:55]}  g5 {[%clk 0:01:45]} 39. b4 {[%clk 0:01:55]}  h3 {[%clk 0:01:44]} 40. Kb2 {[%clk 0:01:52]}  Rh6 {[%clk 0:01:42]} 41. Rd7 {[%clk 0:01:44]}  h2 {[%clk 0:01:42]} 42. Rd1 {[%clk 0:01:45]}  h1=Q {[%clk 0:01:42]} 43. Rxh1 {[%clk 0:01:45]}  Rxh1 {[%clk 0:01:42]} 44. b5 {[%clk 0:01:46]}  Kf4 {[%clk 0:01:40]} 45. c4 {[%clk 0:01:27]}  g4 {[%clk 0:01:39]} 46. b6 {[%clk 0:01:28]}  g3 {[%clk 0:01:38]} 47. b7 {[%clk 0:01:27]}  Rh8 {[%clk 0:01:38]} 48. c5 {[%clk 0:01:27]}  g2 {[%clk 0:01:38]} 49. c6 {[%clk 0:01:28]}  g1=Q {[%clk 0:01:39]} 50. c7 {[%clk 0:01:28]}  Qb6+ {[%clk 0:01:39]} 51. Kc2 {[%clk 0:01:27]}  Qxc7+ {[%clk 0:01:39]} 52. Kd2 {[%clk 0:01:28]}  Qxb7 {[%clk 0:01:40]} 0-1


[Site "https://www.chess.com"]

[Event "Late Titled Tuesday Blitz February 8 2022"]
[White "Rudykh, Stepan"]
[Black "Prohorov, Olexandr"]
[WhiteFideId "4180321"]
[BlackFideId "14105578"]
[WhiteElo "2142"]
[BlackElo "1993"]
[Result "1-0"]
[Round "08"]
[TimeControl "180+1"]
[Date "2022.02.09"]
[WhiteClock "0:01:38"]
[BlackClock "0:02:38"]

1. e4 {[%clk 0:03:00]}  c5 {[%clk 0:02:59]} 2. Nf3 {[%clk 0:03:01]}  e6 {[%clk 0:02:59]} 3. d4 {[%clk 0:03:01]}  cxd4 {[%clk 0:03:00]} 4. Nxd4 {[%clk 0:03:02]}  Qb6 {[%clk 0:03:00]} 5. Nb3 {[%clk 0:02:50]}  Nf6 {[%clk 0:03:00]} 6. Bd3 {[%clk 0:02:47]}  d5 {[%clk 0:02:59]} 7. e5 {[%clk 0:02:37]}  Nfd7 {[%clk 0:02:58]} 8. Qe2 {[%clk 0:02:37]}  Nc6 {[%clk 0:02:58]} 9. Be3 {[%clk 0:02:34]}  Qc7 {[%clk 0:02:57]} 10. f4 {[%clk 0:02:33]}  b6 {[%clk 0:02:51]} 11. O-O {[%clk 0:02:22]}  Nb4 {[%clk 0:02:50]} 12. Nc3 {[%clk 0:02:08]}  Nxd3 {[%clk 0:02:46]} 13. cxd3 {[%clk 0:02:02]}  Ba6 {[%clk 0:02:45]} 14. Rac1 {[%clk 0:02:01]}  Qb7 {[%clk 0:02:45]} 15. Nd4 {[%clk 0:01:47]}  Bc5 {[%clk 0:02:42]} 16. a3 {[%clk 0:01:39]}  O-O {[%clk 0:02:40]} 17. b4 {[%clk 0:01:38]}  Bxd4 {[%clk 0:02:38]} 18. Bxd4 {[%clk 0:01:39]}  Rac8 {[%clk 0:02:38]} 19. b5 {[%clk 0:01:38]} 1-0


[Site "https://www.chess.com"]

[Event "Late Titled Tuesday Blitz February 8 2022"]
[White "Sarkar, Justin"]
[Black "Jaskolka, Tomasz"]
[WhiteFideId "2010011"]
[BlackFideId "1170791"]
[WhiteElo "2038"]
[BlackElo "2054"]
[Result "0-1"]
[Round "08"]
[TimeControl "180+1"]
[Date "2022.02.09"]
[WhiteClock "0:00:01"]
[BlackClock "0:01:02"]

1. e4 {[%clk 0:02:58]}  c5 {[%clk 0:03:00]} 2. Nf3 {[%clk 0:02:57]}  e6 {[%clk 0:03:00]} 3. d4 {[%clk 0:02:55]}  cxd4 {[%clk 0:03:01]} 4. Nxd4 {[%clk 0:02:55]}  Nc6 {[%clk 0:03:01]} 5. Nb5 {[%clk 0:02:54]}  d6 {[%clk 0:02:58]} 6. c4 {[%clk 0:02:53]}  Nf6 {[%clk 0:02:57]} 7. N1c3 {[%clk 0:02:40]}  a6 {[%clk 0:02:56]} 8. Nd4 {[%clk 0:02:40]}  Be7 {[%clk 0:02:52]} 9. Be2 {[%clk 0:02:39]}  O-O {[%clk 0:02:51]} 10. O-O {[%clk 0:02:39]}  d5 {[%clk 0:02:52]} 11. cxd5 {[%clk 0:02:32]}  exd5 {[%clk 0:02:53]} 12. exd5 {[%clk 0:02:08]}  Nxd5 {[%clk 0:02:51]} 13. Nxc6 {[%clk 0:02:07]}  bxc6 {[%clk 0:02:52]} 14. Nxd5 {[%clk 0:02:05]}  cxd5 {[%clk 0:02:49]} 15. Bf3 {[%clk 0:02:04]}  Be6 {[%clk 0:02:49]} 16. Be3 {[%clk 0:02:02]}  Rb8 {[%clk 0:02:44]} 17. Bd4 {[%clk 0:01:57]}  Qd7 {[%clk 0:02:34]} 18. b3 {[%clk 0:01:55]}  Rfc8 {[%clk 0:02:33]} 19. Qd3 {[%clk 0:01:52]}  Qb5 {[%clk 0:02:22]} 20. Qxb5 {[%clk 0:01:50]}  axb5 {[%clk 0:02:22]} 21. a4 {[%clk 0:01:46]}  bxa4 {[%clk 0:02:14]} 22. bxa4 {[%clk 0:01:47]}  Bc5 {[%clk 0:02:10]} 23. Bxc5 {[%clk 0:01:16]}  Rxc5 {[%clk 0:02:10]} 24. h3 {[%clk 0:01:16]}  Kf8 {[%clk 0:02:09]} 25. Rfb1 {[%clk 0:01:05]}  Rxb1+ {[%clk 0:01:57]} 26. Rxb1 {[%clk 0:01:06]}  Ra5 {[%clk 0:01:55]} 27. Rb4 {[%clk 0:00:31]}  Ke7 {[%clk 0:01:54]} 28. Be2 {[%clk 0:00:29]}  Bd7 {[%clk 0:01:49]} 29. Bb5 {[%clk 0:00:26]}  Bxb5 {[%clk 0:01:44]} 30. axb5 {[%clk 0:00:25]}  Kd6 {[%clk 0:01:16]} 31. b6 {[%clk 0:00:23]}  Ra1+ {[%clk 0:01:16]} 32. Kh2 {[%clk 0:00:23]}  Ra8 {[%clk 0:01:16]} 33. b7 {[%clk 0:00:19]}  Rb8 {[%clk 0:01:16]} 34. Kg3 {[%clk 0:00:19]}  Kc6 {[%clk 0:01:13]} 35. Rg4 {[%clk 0:00:10]}  g6 {[%clk 0:01:12]} 36. Rh4 {[%clk 0:00:08]}  h5 {[%clk 0:01:09]} 37. Kf4 {[%clk 0:00:08]}  f6 {[%clk 0:01:04]} 38. Ke3 {[%clk 0:00:03]}  Rxb7 {[%clk 0:01:03]} 39. Rf4 {[%clk 0:00:03]}  Rb3+ {[%clk 0:01:02]} 40. Kd4 {[%clk 0:00:03]}  Rb4+ {[%clk 0:01:02]} 41. Ke3 {[%clk 0:00:01]}  Rxf4 {[%clk 0:01:03]} 42. Kxf4 {[%clk 0:00:01]}  Kc5 {[%clk 0:01:02]} 0-1


[Site "https://www.chess.com"]

[Event "Late Titled Tuesday Blitz February 8 2022"]
[White "Shevchenko, Kirill"]
[Black "Rustemov, Alexander"]
[WhiteFideId "14129574"]
[BlackFideId "4119002"]
[WhiteElo "2624"]
[BlackElo "2833"]
[Result "1-0"]
[Round "08"]
[TimeControl "180+1"]
[Date "2022.02.08"]
[WhiteClock "0:00:35"]
[BlackClock "0:00:08"]

1. e4 {[%clk 0:03:00]}  e6 {[%clk 0:02:59]} 2. d4 {[%clk 0:02:57]}  d5 {[%clk 0:03:00]} 3. e5 {[%clk 0:02:57]}  c5 {[%clk 0:02:58]} 4. c3 {[%clk 0:02:58]}  Qb6 {[%clk 0:02:59]} 5. Nf3 {[%clk 0:02:58]}  Bd7 {[%clk 0:02:59]} 6. Bd3 {[%clk 0:02:55]}  cxd4 {[%clk 0:02:53]} 7. O-O {[%clk 0:02:54]}  Nc6 {[%clk 0:02:52]} 8. Re1 {[%clk 0:02:54]}  Nge7 {[%clk 0:02:50]} 9. h4 {[%clk 0:02:54]}  h6 {[%clk 0:02:47]} 10. h5 {[%clk 0:02:53]}  Rc8 {[%clk 0:02:45]} 11. Nbd2 {[%clk 0:02:52]}  dxc3 {[%clk 0:02:45]} 12. bxc3 {[%clk 0:02:53]}  Na5 {[%clk 0:02:36]} 13. Rb1 {[%clk 0:02:51]}  Qc7 {[%clk 0:02:36]} 14. Nb3 {[%clk 0:02:50]}  Nxb3 {[%clk 0:02:26]} 15. axb3 {[%clk 0:02:39]}  Nc6 {[%clk 0:02:22]} 16. Bf4 {[%clk 0:02:38]}  Be7 {[%clk 0:02:21]} 17. b4 {[%clk 0:02:23]}  a5 {[%clk 0:02:08]} 18. b5 {[%clk 0:02:22]}  Nb8 {[%clk 0:02:02]} 19. Rc1 {[%clk 0:02:12]}  Qb6 {[%clk 0:01:31]} 20. Nd4 {[%clk 0:02:04]}  Bc5 {[%clk 0:01:13]} 21. Qg4 {[%clk 0:01:54]}  Kf8 {[%clk 0:01:13]} 22. Be3 {[%clk 0:01:48]}  a4 {[%clk 0:01:12]} 23. Ra1 {[%clk 0:01:35]}  a3 {[%clk 0:01:10]} 24. Bc1 {[%clk 0:01:31]}  Qa5 {[%clk 0:01:03]} 25. Bd2 {[%clk 0:01:03]}  Bxd4 {[%clk 0:00:51]} 26. Qxd4 {[%clk 0:01:03]}  Bxb5 {[%clk 0:00:51]} 27. Bc2 {[%clk 0:00:52]}  Bc4 {[%clk 0:00:46]} 28. Re3 {[%clk 0:00:48]}  Nc6 {[%clk 0:00:44]} 29. Qg4 {[%clk 0:00:48]}  Qc7 {[%clk 0:00:33]} 30. Rxa3 {[%clk 0:00:45]}  Nxe5 {[%clk 0:00:33]} 31. Qf4 {[%clk 0:00:44]}  Nc6 {[%clk 0:00:31]} 32. Qxc7 {[%clk 0:00:44]}  Rxc7 {[%clk 0:00:25]} 33. Ra8+ {[%clk 0:00:44]}  Ke7 {[%clk 0:00:24]} 34. Rxh8 {[%clk 0:00:45]}  b5 {[%clk 0:00:22]} 35. Re1 {[%clk 0:00:42]}  e5 {[%clk 0:00:18]} 36. Be3 {[%clk 0:00:38]}  Kf6 {[%clk 0:00:16]} 37. Bc5 {[%clk 0:00:37]}  d4 {[%clk 0:00:12]} 38. cxd4 {[%clk 0:00:36]}  Nxd4 {[%clk 0:00:12]} 39. Bxd4 {[%clk 0:00:34]}  exd4 {[%clk 0:00:13]} 40. Rd8 {[%clk 0:00:34]}  Be6 {[%clk 0:00:08]} 41. Bd3 {[%clk 0:00:34]}  Rc5 {[%clk 0:00:08]} 42. Rxd4 {[%clk 0:00:34]}  Rxh5 {[%clk 0:00:08]} 43. Rf4+ {[%clk 0:00:34]}  Ke7 {[%clk 0:00:08]} 44. Rb4 {[%clk 0:00:35]} 1-0


[Site "https://www.chess.com"]

[Event "Late Titled Tuesday Blitz February 8 2022"]
[White "Stoleriu, George"]
[Black "Estrada Nieto, Julian"]
[WhiteFideId "1227505"]
[BlackFideId "5101018"]
[WhiteElo "2203"]
[BlackElo "2246"]
[Result "1-0"]
[Round "08"]
[TimeControl "180+1"]
[Date "2022.02.09"]
[WhiteClock "0:00:12"]
[BlackClock "0:00:02"]

1. e4 {[%clk 0:03:00]}  e5 {[%clk 0:02:59]} 2. Nf3 {[%clk 0:02:59]}  Nc6 {[%clk 0:02:59]} 3. Bb5 {[%clk 0:02:58]}  a6 {[%clk 0:02:59]} 4. Ba4 {[%clk 0:02:57]}  Nf6 {[%clk 0:03:00]} 5. d3 {[%clk 0:02:57]}  d6 {[%clk 0:02:54]} 6. c3 {[%clk 0:02:55]}  Be7 {[%clk 0:02:54]} 7. O-O {[%clk 0:02:30]}  O-O {[%clk 0:02:52]} 8. Re1 {[%clk 0:02:22]}  Re8 {[%clk 0:02:51]} 9. Nbd2 {[%clk 0:02:21]}  Bf8 {[%clk 0:02:47]} 10. Nf1 {[%clk 0:02:21]}  h6 {[%clk 0:02:47]} 11. Ng3 {[%clk 0:02:21]}  g6 {[%clk 0:02:45]} 12. h3 {[%clk 0:02:21]}  Bg7 {[%clk 0:02:41]} 13. d4 {[%clk 0:02:16]}  b5 {[%clk 0:02:38]} 14. Bb3 {[%clk 0:02:15]}  Bb7 {[%clk 0:02:32]} 15. d5 {[%clk 0:02:09]}  Na5 {[%clk 0:02:31]} 16. Bc2 {[%clk 0:02:10]}  c6 {[%clk 0:02:30]} 17. dxc6 {[%clk 0:02:10]}  Bxc6 {[%clk 0:02:28]} 18. Qe2 {[%clk 0:02:02]}  d5 {[%clk 0:02:22]} 19. exd5 {[%clk 0:02:01]}  Qxd5 {[%clk 0:02:22]} 20. Rd1 {[%clk 0:01:31]}  Qe6 {[%clk 0:02:17]} 21. b3 {[%clk 0:01:19]}  Rad8 {[%clk 0:02:15]} 22. Ba3 {[%clk 0:01:16]}  Nd5 {[%clk 0:02:02]} 23. Bb4 {[%clk 0:01:10]}  Nf4 {[%clk 0:01:56]} 24. Qe3 {[%clk 0:01:04]}  Nb7 {[%clk 0:01:49]} 25. Be4 {[%clk 0:01:04]}  Nd5 {[%clk 0:01:45]} 26. Bxd5 {[%clk 0:00:52]}  Rxd5 {[%clk 0:01:41]} 27. Rxd5 {[%clk 0:00:48]}  Qxd5 {[%clk 0:01:39]} 28. Re1 {[%clk 0:00:48]}  f5 {[%clk 0:01:27]} 29. Qe2 {[%clk 0:00:41]}  a5 {[%clk 0:01:20]} 30. Ba3 {[%clk 0:00:41]}  Kh7 {[%clk 0:01:07]} 31. Rd1 {[%clk 0:00:35]}  Qe6 {[%clk 0:01:07]} 32. Re1 {[%clk 0:00:28]}  Qd5 {[%clk 0:00:47]} 33. Rd1 {[%clk 0:00:28]}  Qe6 {[%clk 0:00:47]} 34. Nf1 {[%clk 0:00:19]}  f4 {[%clk 0:00:39]} 35. N1d2 {[%clk 0:00:15]}  Qf5 {[%clk 0:00:38]} 36. Re1 {[%clk 0:00:13]}  Qc2 {[%clk 0:00:35]} 37. Ne4 {[%clk 0:00:11]}  Qxe2 {[%clk 0:00:33]} 38. Rxe2 {[%clk 0:00:12]}  Rd8 {[%clk 0:00:30]} 39. Kh2 {[%clk 0:00:09]}  Rd3 {[%clk 0:00:27]} 40. Nfd2 {[%clk 0:00:08]}  a4 {[%clk 0:00:14]} 41. Be7 {[%clk 0:00:08]}  axb3 {[%clk 0:00:13]} 42. axb3 {[%clk 0:00:09]}  Rd7 {[%clk 0:00:12]} 43. Nf6+ {[%clk 0:00:09]}  Bxf6 {[%clk 0:00:12]} 44. Bxf6 {[%clk 0:00:10]}  e4 {[%clk 0:00:11]} 45. Nxe4 {[%clk 0:00:10]}  Bxe4 {[%clk 0:00:08]} 46. Rxe4 {[%clk 0:00:11]}  g5 {[%clk 0:00:09]} 47. Re7+ {[%clk 0:00:08]}  Rxe7 {[%clk 0:00:09]} 48. Bxe7 {[%clk 0:00:08]}  Kg6 {[%clk 0:00:09]} 49. g3 {[%clk 0:00:09]}  Kf7 {[%clk 0:00:09]} 50. Bb4 {[%clk 0:00:08]}  f3 {[%clk 0:00:08]} 51. g4 {[%clk 0:00:08]}  Ke6 {[%clk 0:00:08]} 52. Kg3 {[%clk 0:00:09]}  Kd5 {[%clk 0:00:08]} 53. Kxf3 {[%clk 0:00:10]}  Nd8 {[%clk 0:00:08]} 54. Bf8 {[%clk 0:00:10]}  Ne6 {[%clk 0:00:08]} 55. Bxh6 {[%clk 0:00:10]}  Nc5 {[%clk 0:00:06]} 56. Bxg5 {[%clk 0:00:08]}  Nxb3 {[%clk 0:00:07]} 57. Bf6 {[%clk 0:00:08]}  Nc5 {[%clk 0:00:06]} 58. h4 {[%clk 0:00:08]}  Ne4 {[%clk 0:00:07]} 59. Bg7 {[%clk 0:00:08]}  Nd6 {[%clk 0:00:05]} 60. h5 {[%clk 0:00:08]}  Ke6 {[%clk 0:00:06]} 61. g5 {[%clk 0:00:07]}  Kf7 {[%clk 0:00:06]} 62. h6 {[%clk 0:00:07]}  Kg6 {[%clk 0:00:06]} 63. Kg4 {[%clk 0:00:07]}  Nf5 {[%clk 0:00:05]} 64. f4 {[%clk 0:00:08]}  Ne3+ {[%clk 0:00:05]} 65. Kf3 {[%clk 0:00:08]}  Nf5 {[%clk 0:00:05]} 66. Ke4 {[%clk 0:00:09]}  Ng3+ {[%clk 0:00:04]} 67. Kd5 {[%clk 0:00:09]}  Nf5 {[%clk 0:00:04]} 68. Kc5 {[%clk 0:00:10]}  Ne7 {[%clk 0:00:02]} 69. Kxb5 {[%clk 0:00:10]}  Nf5 {[%clk 0:00:02]} 70. c4 {[%clk 0:00:09]}  Ne3 {[%clk 0:00:02]} 71. c5 {[%clk 0:00:10]}  Nd5 {[%clk 0:00:03]} 72. c6 {[%clk 0:00:10]}  Nc7+ {[%clk 0:00:02]} 73. Kb6 {[%clk 0:00:11]}  Ne6 {[%clk 0:00:03]} 74. Kb7 {[%clk 0:00:11]}  Kh7 {[%clk 0:00:02]} 75. c7 {[%clk 0:00:11]}  Nxc7 {[%clk 0:00:02]} 76. Kxc7 {[%clk 0:00:12]}  Kg6 {[%clk 0:00:02]} 77. f5+ {[%clk 0:00:12]} 1-0


[Site "https://www.chess.com"]

[Event "Late Titled Tuesday Blitz February 8 2022"]
[White "Svane, Rasmus"]
[Black "Horvath, Dominik"]
[WhiteFideId "4657101"]
[BlackFideId "1642561"]
[WhiteElo "2645"]
[BlackElo "2336"]
[Result "1-0"]
[Round "08"]
[TimeControl "180+1"]
[Date "2022.02.08"]
[WhiteClock "0:00:11"]
[BlackClock "0:00:07"]

1. Nf3 {[%clk 0:03:00]}  d5 {[%clk 0:02:59]} 2. g3 {[%clk 0:03:01]}  Nc6 {[%clk 0:02:59]} 3. d4 {[%clk 0:03:01]}  Bg4 {[%clk 0:03:00]} 4. Bg2 {[%clk 0:03:00]}  Qd7 {[%clk 0:02:42]} 5. h3 {[%clk 0:03:00]}  Bxf3 {[%clk 0:02:31]} 6. exf3 {[%clk 0:02:59]}  e6 {[%clk 0:02:26]} 7. f4 {[%clk 0:03:00]}  Bd6 {[%clk 0:02:23]} 8. c3 {[%clk 0:02:58]}  Nf6 {[%clk 0:02:22]} 9. Nd2 {[%clk 0:02:58]}  Ne7 {[%clk 0:02:22]} 10. Nf3 {[%clk 0:02:57]}  O-O {[%clk 0:02:23]} 11. O-O {[%clk 0:02:56]}  c5 {[%clk 0:02:23]} 12. dxc5 {[%clk 0:02:36]}  Bxc5 {[%clk 0:02:23]} 13. Ne5 {[%clk 0:02:37]}  Qd8 {[%clk 0:02:21]} 14. a4 {[%clk 0:02:29]}  a5 {[%clk 0:02:16]} 15. Qb3 {[%clk 0:02:24]}  Nf5 {[%clk 0:02:15]} 16. Kh2 {[%clk 0:02:20]}  Qc7 {[%clk 0:02:06]} 17. Qc2 {[%clk 0:02:05]}  Rac8 {[%clk 0:01:56]} 18. Bd2 {[%clk 0:01:49]}  Rfd8 {[%clk 0:01:55]} 19. Rad1 {[%clk 0:01:42]}  Nd6 {[%clk 0:01:53]} 20. Bc1 {[%clk 0:01:32]}  Qb6 {[%clk 0:01:50]} 21. Ng4 {[%clk 0:01:28]}  Nfe8 {[%clk 0:01:29]} 22. Rd3 {[%clk 0:01:19]}  h5 {[%clk 0:01:25]} 23. Ne5 {[%clk 0:01:18]}  Nf6 {[%clk 0:01:23]} 24. g4 {[%clk 0:01:13]}  Nfe4 {[%clk 0:01:03]} 25. Rf3 {[%clk 0:00:57]}  f6 {[%clk 0:00:49]} 26. Nd3 {[%clk 0:00:51]}  h4 {[%clk 0:00:38]} 27. Qe2 {[%clk 0:00:48]}  Nf7 {[%clk 0:00:36]} 28. Nxc5 {[%clk 0:00:48]}  Qxc5 {[%clk 0:00:36]} 29. Re3 {[%clk 0:00:47]}  Nfd6 {[%clk 0:00:33]} 30. Rd3 {[%clk 0:00:31]}  Qc7 {[%clk 0:00:31]} 31. Kg1 {[%clk 0:00:29]}  Kf7 {[%clk 0:00:29]} 32. Rfd1 {[%clk 0:00:27]}  Re8 {[%clk 0:00:28]} 33. Qc2 {[%clk 0:00:22]}  Nc5 {[%clk 0:00:26]} 34. Rd4 {[%clk 0:00:21]}  f5 {[%clk 0:00:23]} 35. gxf5 {[%clk 0:00:20]}  Nxf5 {[%clk 0:00:21]} 36. Rxd5 {[%clk 0:00:20]}  g6 {[%clk 0:00:19]} 37. R5d2 {[%clk 0:00:15]}  Rcd8 {[%clk 0:00:19]} 38. b4 {[%clk 0:00:15]}  Na6 {[%clk 0:00:14]} 39. Qe4 {[%clk 0:00:10]}  axb4 {[%clk 0:00:12]} 40. cxb4 {[%clk 0:00:09]}  Rxd2 {[%clk 0:00:12]} 41. Bxd2 {[%clk 0:00:10]}  Rd8 {[%clk 0:00:12]} 42. Qxb7 {[%clk 0:00:08]}  Qxb7 {[%clk 0:00:12]} 43. Bxb7 {[%clk 0:00:09]}  Nxb4 {[%clk 0:00:12]} 44. a5 {[%clk 0:00:10]}  Nd5 {[%clk 0:00:04]} 45. Be1 {[%clk 0:00:07]}  Nd6 {[%clk 0:00:04]} 46. Bxd5 {[%clk 0:00:07]}  exd5 {[%clk 0:00:04]} 47. Rxd5 {[%clk 0:00:08]}  Ke6 {[%clk 0:00:04]} 48. Re5+ {[%clk 0:00:07]}  Kf6 {[%clk 0:00:05]} 49. a6 {[%clk 0:00:07]}  Ra8 {[%clk 0:00:04]} 50. Ra5 {[%clk 0:00:08]}  Nc4 {[%clk 0:00:05]} 51. Ra4 {[%clk 0:00:08]}  Nb6 {[%clk 0:00:05]} 52. Ra2 {[%clk 0:00:08]}  Nd5 {[%clk 0:00:05]} 53. Bd2 {[%clk 0:00:08]}  Nc7 {[%clk 0:00:06]} 54. a7 {[%clk 0:00:08]}  Ke6 {[%clk 0:00:05]} 55. Be3 {[%clk 0:00:09]}  Kd5 {[%clk 0:00:05]} 56. Kg2 {[%clk 0:00:09]}  Ke4 {[%clk 0:00:06]} 57. Ra4+ {[%clk 0:00:09]}  Kf5 {[%clk 0:00:06]} 58. Kf3 {[%clk 0:00:10]}  Ne6 {[%clk 0:00:03]} 59. Ra5+ {[%clk 0:00:10]}  Kf6 {[%clk 0:00:04]} 60. Kg4 {[%clk 0:00:11]}  Ng7 {[%clk 0:00:04]} 61. Kxh4 {[%clk 0:00:09]}  Nf5+ {[%clk 0:00:04]} 62. Kg4 {[%clk 0:00:10]}  Kg7 {[%clk 0:00:04]} 63. h4 {[%clk 0:00:09]}  Kh6 {[%clk 0:00:05]} 64. h5 {[%clk 0:00:08]}  Nxe3+ {[%clk 0:00:05]} 65. fxe3 {[%clk 0:00:09]}  gxh5+ {[%clk 0:00:03]} 66. Rxh5+ {[%clk 0:00:09]}  Kg6 {[%clk 0:00:04]} 67. Ra5 {[%clk 0:00:10]}  Kf6 {[%clk 0:00:05]} 68. e4 {[%clk 0:00:10]}  Kg6 {[%clk 0:00:05]} 69. e5 {[%clk 0:00:10]}  Kh6 {[%clk 0:00:06]} 70. Kf5 {[%clk 0:00:10]}  Kh5 {[%clk 0:00:05]} 71. Ke4 {[%clk 0:00:10]}  Kg6 {[%clk 0:00:06]} 72. Kd5 {[%clk 0:00:10]}  Kf5 {[%clk 0:00:06]} 73. Kc6 {[%clk 0:00:10]}  Kxf4 {[%clk 0:00:07]} 74. Kb7 {[%clk 0:00:11]} 1-0


[Site "https://www.chess.com"]